fUSD/lending_fUSD_20250911
["ID","MTS","AMOUNT","RATE_DAILY","PERIOD"]
[384879664,1757609445386,-410.33290618,0.00027397,7]
[384879665,1757609445396,-421.05,0.00027397,7]
[384879666,1757609445406,-400.0,0.00027397,7]
[384879667,1757609445416,-492.86922001,0.00027397,7]
[384879668,1757609445426,-300.0,0.00027397,7]
[384879669,1757609445436,-400.0,0.00027397,7]
[384879670,1757609445446,-410.83330219,0.00027397,7]
[384879671,1757609445456,-400.0,0.00027397,7]
[384879672,1757609445466,-400.0,0.00027397,7]
[384879673,1757609445475,-500.0,0.00027397,7]
[384879674,1757609445485,-938.15,0.00027397,7]
[384879675,1757609445494,-401.89301744,0.00027397,7]
[384879676,1757609445504,-400.0,0.00027397,7]
[384879677,1757609445513,-1070.42,0.00027397,7]
[384879678,1757609445523,-626.39,0.00027397,7]
[384879679,1757609445532,-400.0,0.00027397,7]
[384879680,1757609445542,-400.0,0.00027397,7]
[384879681,1757609445552,-400.0,0.00027397,7]
[384879682,1757609445561,-400.0,0.00027397,7]
[384879683,1757609445570,-1818.02,0.00027397,7]
[384879684,1757609445579,-400.0,0.00027397,7]
[384879685,1757609445589,-470.4,0.00027397,7]
[384879686,1757609445598,-400.0,0.00027397,7]
[384879687,1757609445608,-1411.81,0.00027397,7]
[384879688,1757609445617,-400.0,0.00027397,7]
[384879689,1757609445626,-834.6,0.00027397,7]
[384879690,1757609445635,-400.0,0.00027397,7]
[384879691,1757609445645,-400.0,0.00027397,7]
[384879692,1757609445654,-400.0,0.00027397,7]
[384879693,1757609445664,-400.0,0.00027397,7]
[384879694,1757609445673,-400.0,0.00027397,7]
[384879695,1757609445682,-762.29,0.00027397,7]
[384879696,1757609445691,-501.995439,0.00027397,7]
[384879697,1757609445700,-244.87274473,0.00027397,7]
[384879698,1757609445709,-400.0,0.00027397,7]
[384879699,1757609445719,-400.0,0.00027397,7]
[384879700,1757609445728,-400.0,0.00027397,7]
[384879701,1757609445737,-400.0,0.00027397,7]
[384879702,1757609445746,-400.0,0.00027397,7]
[384879703,1757609445755,-400.0,0.00027397,7]
[384879704,1757609445764,-400.0,0.00027397,7]
[384879705,1757609445772,-400.0,0.00027397,7]
[384879706,1757609445781,-400.0,0.00027397,7]
[384879707,1757609445790,-151.0,0.00027397,7]
[384879708,1757609445800,-151.119931,0.00027397,7]
[384879709,1757609446047,-1485.94,0.00027397,7]
[384879710,1757609446056,-151.0,0.00027397,7]
[384879711,1757609446066,-151.0,0.00027397,7]
[384879712,1757609446075,-151.0,0.00027397,7]
[384879713,1757609446085,-400.0,0.00027397,7]
[384879714,1757609446094,-151.0,0.00027397,7]
[384879715,1757609446104,-151.0,0.00027397,7]
[384879716,1757609446114,-400.0,0.00027397,7]
[384879717,1757609446129,-151.0,0.00027397,7]
[384879718,1757609446138,-400.0,0.00027397,7]
[384879719,1757609446148,-186.593724,0.00027397,7]
[384879720,1757609446158,-400.0,0.00027397,7]
[384879721,1757609446167,-400.0,0.00027397,7]
[384879722,1757609446176,-400.0,0.00027397,7]
[384879723,1757609446186,-1001.47,0.00027397,7]
[384879724,1757609446197,-466.78,0.00027397,7]
[384879725,1757609446209,-400.0,0.00027397,7]
[384879726,1757609446219,-400.0,0.00027397,7]
[384879727,1757609446229,-400.0,0.00027397,7]
[384879728,1757609446238,-728.77,0.00027397,7]
[384879729,1757609446248,-729.06,0.00027397,7]
[384879730,1757609446257,-400.0,0.00027397,7]
[384879731,1757609446266,-400.0,0.00027397,7]
[384879732,1757609446276,-400.0,0.00027397,7]
[384879733,1757609446286,-400.0,0.00027397,7]
[384879734,1757609446296,-400.0,0.00027397,7]
[384879735,1757609446305,-970.51,0.00027397,7]
[384879736,1757609446314,-400.0,0.00027397,7]
[384879737,1757609446324,-409.08365642,0.00027397,7]
[384879738,1757609446333,-400.0,0.00027397,7]
[384879739,1757609446343,-659.76,0.00027397,7]
[384879740,1757609446352,-1364.79,0.00027397,7]
[384879741,1757609446362,-428.28787647,0.00027397,7]
[384879742,1757609446372,-400.0,0.00027397,7]
[384879743,1757609446383,-400.0,0.00027397,2]
[384879744,1757609446393,-400.0,0.00027397,2]
[384879745,1757609446403,-400.0,0.00027397,7]
[384879746,1757609446413,-1629.3,0.00027397,7]
[384879747,1757609446422,-400.0,0.00027397,7]
[384879748,1757609446431,-400.0,0.00027397,7]
[384879749,1757609446441,-999.89,0.00027397,7]
[384879750,1757609446450,-400.0,0.00027397,7]
[384879751,1757609446459,-666.16,0.00027397,7]
[384879752,1757609446470,-400.0,0.00027397,7]
[384879753,1757609446480,-400.0,0.00027397,7]
[384879754,1757609446489,-400.0,0.00027397,7]
[384879755,1757609446499,-400.0,0.00027397,7]
[384879756,1757609446508,-400.0,0.00027397,7]
[384879757,1757609446518,-400.0,0.00027397,7]
[384879758,1757609446528,-400.0,0.00027397,7]
[384879759,1757609446537,-400.0,0.00027397,7]
[384879760,1757609446547,-628.61,0.00027397,7]
[384879762,1757609446557,-400.78,0.00027397,7]
[384879764,1757609446566,-502.06,0.00027397,7]
[384879765,1757609446575,-400.0,0.00027397,7]
[384879766,1757609446584,-400.0,0.00027397,7]
[384879767,1757609446593,-400.0,0.00027397,7]
[384879768,1757609446603,-500.0,0.00027397,2]
[384879769,1757609446612,-400.0,0.00027397,7]
[384879770,1757609446621,-526.06,0.00027397,7]
[384879771,1757609446630,-434.28,0.00027397,7]
[384879772,1757609446639,-400.0,0.00027397,7]
[384879774,1757609446649,-400.0,0.00027397,7]
[384879775,1757609446658,-693.89,0.00027397,7]
[384879776,1757609446667,-400.0,0.00027397,7]
[384879777,1757609446676,-153.89716864,0.00027397,7]
[384879778,1757609446685,-366.09821639,0.00027397,7]
[384879779,1757609446694,-186.8812,0.00027397,7]
[384879780,1757609446703,-186.8812,0.00027397,7]
[384879781,1757609446713,-741.37,0.00027397,7]
[384879782,1757609446722,-186.8812,0.00027397,7]
[384879783,1757609446732,-186.8812,0.00027397,7]
[384879784,1757609446741,-186.8812,0.00027397,7]
[384879785,1757609446751,-400.0,0.00027397,7]
[384879786,1757609446760,-186.8812,0.00027397,7]
[384879787,1757609446770,-186.8812,0.00027397,7]
[384879788,1757609446779,-186.8812,0.00027397,7]
[384879789,1757609446789,-186.8812,0.00027397,7]
[384879790,1757609446798,-186.8812,0.00027397,7]
[384879791,1757609446808,-186.8812,0.00027397,7]
[384879792,1757609446817,-400.0,0.00027397,7]
[384879793,1757609446827,-186.8812,0.00027397,7]
[384879794,1757609446836,-186.8812,0.00027397,7]
[384879795,1757609446845,-400.0,0.00027397,7]
[384879796,1757609446854,-186.8812,0.00027397,7]
[384879797,1757609446863,-186.8812,0.00027397,7]
[384879798,1757609446873,-186.8812,0.00027397,7]
[384879799,1757609446882,-186.8812,0.00027397,7]
[384879800,1757609446892,-1496.6,0.00027397,7]
[384879801,1757609446901,-186.8812,0.00027397,7]
[384879802,1757609446911,-186.8812,0.00027397,7]
[384879803,1757609446920,-186.8812,0.00027397,7]
[384879804,1757609446929,-400.0,0.00027397,7]
[384879805,1757609446938,-400.0,0.00027397,7]
[384879806,1757609446948,-400.0,0.00027397,7]
[384879807,1757609446957,-400.0,0.00027397,7]
[384879808,1757609446966,-400.0,0.00027397,7]
[384879809,1757609446976,-933.37,0.00027397,7]
[384879810,1757609446985,-400.0,0.00027397,7]
[384879811,1757609446994,-400.0,0.00027397,7]
[384879812,1757609447004,-400.0,0.00027397,7]
[384879813,1757609447013,-400.0,0.00027397,7]
[384879814,1757609447023,-400.0,0.00027397,7]
[384879815,1757609447032,-745.24,0.00027397,7]
[384879816,1757609447041,-400.0,0.00027397,7]
[384879817,1757609447050,-400.0,0.00027397,7]
[384879818,1757609447059,-400.0,0.00027397,7]
[384879819,1757609447069,-400.0,0.00027397,7]
[384879820,1757609447078,-1317.86,0.00027397,7]
[384879821,1757609447087,-400.0,0.00027397,7]
[384879822,1757609447096,-400.0,0.00027397,7]
[384879823,1757609447105,-400.0,0.00027397,7]
[384879824,1757609447114,-402.98,0.00027397,7]
[384879825,1757609447123,-799.63,0.00027397,7]
[384879826,1757609447132,-400.0,0.00027397,7]
[384879827,1757609447141,-400.0,0.00027397,7]
[384879828,1757609447154,-400.0,0.00027397,7]
[384879829,1757609447163,-167.016229,0.00027397,7]
[384879830,1757609447172,-400.0,0.00027397,7]
[384879831,1757609447182,-167.016229,0.00027397,7]
[384879832,1757609447194,-167.016229,0.00027397,7]
[384879833,1757609447203,-167.016229,0.00027397,7]
[384879834,1757609447212,-400.0,0.00027397,7]
[384879835,1757609447222,-167.016229,0.00027397,7]
[384879836,1757609447232,-167.016229,0.00027397,7]
[384879837,1757609447241,-167.016229,0.00027397,7]
[384879838,1757609447250,-167.016229,0.00027397,7]
[384879839,1757609447259,-400.0,0.00027397,7]
[384879840,1757609447268,-167.016229,0.00027397,7]
[384879841,1757609447278,-400.0,0.00027397,7]
[384879842,1757609447287,-167.016229,0.00027397,7]
[384879843,1757609447297,-167.016229,0.00027397,7]
[384879844,1757609447307,-167.016229,0.00027397,7]
[384879845,1757609447316,-167.016229,0.00027397,7]
[384879846,1757609447325,-400.0,0.00027397,7]
[384879847,1757609447335,-167.016229,0.00027397,7]
[384879848,1757609447344,-167.016229,0.00027397,7]
[384879849,1757609447354,-167.016229,0.00027397,7]
[384879850,1757609447363,-167.016229,0.00027397,7]
[384879851,1757609447373,-400.0,0.00027397,7]
[384879852,1757609447382,-452.6,0.00027397,7]
[384879853,1757609447391,-167.016229,0.00027397,7]
[384879854,1757609447401,-167.016229,0.00027397,7]
[384879855,1757609447411,-167.016236,0.00027397,7]
[384879856,1757609447420,-400.0,0.00027397,7]
[384879857,1757609447429,-400.0,0.00027397,7]
[384879858,1757609447439,-151.0,0.00027397,7]
[384879859,1757609447448,-400.0,0.00027397,7]
[384879860,1757609447458,-217.287347,0.00027397,7]
[384879861,1757609447467,-404.55420072,0.00027397,7]
[384879862,1757609447477,-400.0,0.00027397,7]
[384879863,1757609447486,-851.25,0.00027397,7]
[384879864,1757609447496,-400.0,0.00027397,7]
[384879865,1757609447506,-400.0,0.00027397,7]
[384879866,1757609447515,-1745.79,0.00027397,7]
[384879867,1757609447524,-1060.16,0.00027397,7]
[384879868,1757609447533,-1000.0,0.00027397,7]
[384879869,1757609447543,-154.886467,0.00027397,7]
[384879870,1757609447552,-400.0,0.00027397,7]
[384879871,1757609447562,-400.0,0.00027397,7]
[384879872,1757609447571,-400.0,0.00027397,7]
[384879873,1757609447581,-1480.96,0.00027397,7]
[384879874,1757609447590,-400.0,0.00027397,7]
[384879875,1757609447600,-1254.01,0.00027397,7]
[384879876,1757609447609,-400.0,0.00027397,7]
[384879877,1757609447618,-999.05,0.00027397,7]
[384879878,1757609447627,-400.0,0.00027397,7]
[384879879,1757609447636,-581.06,0.00027397,7]
[384879880,1757609447645,-400.0,0.00027397,7]
[384879881,1757609447655,-400.0,0.00027397,7]
[384879882,1757609447664,-404.22210816,0.00027397,7]
[384879883,1757609447673,-400.0,0.00027397,7]
[384879884,1757609447682,-151.0,0.00027397,7]
[384879885,1757609447692,-151.764886,0.00027397,7]
[384879886,1757609447701,-400.0,0.00027397,7]
[384879887,1757609447710,-400.0,0.00027397,7]
[384879888,1757609447719,-400.0,0.00027397,7]
[384879889,1757609447729,-400.0,0.00027397,7]
[384879890,1757609447738,-403.36949916,0.00027397,7]
[384879891,1757609447747,-400.0,0.00027397,7]
[384879892,1757609447757,-406.67594236,0.00027397,7]
[384879893,1757609447766,-891.08,0.00027397,7]
[384879894,1757609447776,-400.0,0.00027397,7]
[384879895,1757609447786,-693.8,0.00027397,7]
[384879896,1757609447795,-400.0,0.00027397,7]
[384879897,1757609447804,-400.0,0.00027397,7]
[384879898,1757609447813,-402.08473934,0.00027397,7]
[384879899,1757609447822,-632.39,0.00027397,7]
[384879900,1757609447832,-400.0,0.00027397,7]
[384879901,1757609447841,-400.0,0.00027397,7]
[384879902,1757609447851,-861.98,0.00027397,7]
[384879903,1757609447860,-400.0,0.00027397,7]
[384879904,1757609447869,-142.3087088,0.00027397,7]
[384879905,1757609448929,-44.3051398,0.00027397,7]
[384879906,1757609450000,-213.3861514,0.00027397,7]
[384879907,1757609450011,-400.0,0.00027397,7]
[384879908,1757609450020,-400.0,0.00027397,7]
[384879909,1757609450031,-467.64,0.00027397,7]
[384879910,1757609450040,-425.89,0.00027397,7]
[384879911,1757609450049,-28.4998486,0.00027397,7]
[384879912,1757609450063,-371.5001514,0.00027397,7]
[384879913,1757609450074,-615.63864403,0.00027397,7]
[384879914,1757609450110,-944.2177592,0.00027397,7]
[384879915,1757609450121,-412.57359677,0.00027397,7]
[384879916,1757609450131,-599.87,0.00027397,7]
[384879917,1757609450140,-121.54600223,0.00027397,7]
[384879918,1757609450163,-1078.84977686,0.00027397,7]
[384879930,1757609480568,5000.0,0.00030136,120]
[384879932,1757609489298,5000.0,0.00030136,120]
[384879933,1757609497035,5000.0,0.00030136,120]
[384879934,1757609504902,5000.0,0.00030136,120]
[384879937,1757609522465,300.0,0.00028073,120]
[384879938,1757609528223,1567.67,0.00030136,120]
[384879946,1757609645777,377.23,0.00026303,120]
[384879947,1757609645976,377.23,0.00029591,120]
[384879956,1757610073623,500.0,0.00029863,120]
[384879966,1757610396253,168.53,0.00016438,2]
[384879975,1757610481419,-151.0,0.00022783,2]
[384879976,1757610496788,10000.0,0.0002003,2]
[384879977,1757610569970,300.0,0.00030136,120]
[384879978,1757610596774,211.0,0.00030136,120]
[384879979,1757610606234,155.0,0.00030136,120]
[384879986,1757610632359,-17.53,0.00022783,2]
[384879987,1757610632370,-987.4536361,0.00024143,2]
[384879988,1757610632380,-301.96,0.00024243,2]
[384879989,1757610632390,-399.34,0.00024527,2]
[384879990,1757610632399,-230.09,0.00024658,2]
[384879991,1757610632408,-300.0,0.00024899,2]
[384879992,1757610632417,-300.0,0.00024899,2]
[384879993,1757610632427,-1200.0,0.00024899,2]
[384879994,1757610632436,-5273.57945321,0.000249,2]
[384879995,1757610632446,-5000.0,0.000249,2]
[384879996,1757610632455,-5000.0,0.00025061,2]
[384879997,1757610632465,-500.0,0.00025061,2]
[384879998,1757610632474,-378.0,0.00025681,2]
[384879999,1757610632484,-176.89,0.00025683,2]
[384880000,1757610632493,-5000.0,0.00025705,2]
[384880001,1757610632503,-5000.0,0.00025705,2]
[384880002,1757610632512,-255.0,0.00025778,2]
[384880003,1757610632522,-5000.0,0.00025779,2]
[384880004,1757610632531,-5000.0,0.00025779,2]
[384880005,1757610632540,-500.0,0.00025862,2]
[384880006,1757610632554,-150.0,0.0002589,7]
[384880007,1757610632566,-460.0,0.00025918,2]
[384880008,1757610632575,-160.0,0.00025948,2]
[384880009,1757610632584,-160.0,0.00025948,2]
[384880010,1757610632593,-250.0,0.00025955,2]
[384880011,1757610632603,-257.91778498,0.00025983,2]
[384880012,1757610632612,-1000.01,0.00026,2]
[384880013,1757610632622,-200.0,0.00026018,2]
[384880014,1757610632631,-600.0,0.00026022,2]
[384880016,1757610632641,-151.0,0.00026022,2]
[384880018,1757610632650,-600.0,0.00026022,2]
[384880020,1757610632659,-151.0,0.00026022,2]
[384880021,1757610632669,-600.0,0.00026022,2]
[384880022,1757610632679,-151.0,0.00026022,2]
[384880024,1757610632690,-200.0,0.00026022,2]
[384880026,1757610632699,-639.88003523,0.00026022,2]
[384880028,1757610632709,-600.0,0.00026022,2]
[384880029,1757610632719,-151.0,0.00026022,2]
[384880030,1757610632729,-151.0,0.00026022,2]
[384880031,1757610632739,-151.0,0.00026022,2]
[384880032,1757610632748,-151.0,0.00026022,2]
[384880033,1757610632758,-151.0,0.00026022,2]
[384880034,1757610632767,-151.0,0.00026022,2]
[384880035,1757610632776,-151.0,0.00026022,2]
[384880036,1757610632786,-500.0,0.00026022,2]
[384880037,1757610632795,-500.0,0.00026022,2]
[384880038,1757610632804,-500.0,0.00026022,2]
[384880039,1757610632813,-519.13424855,0.00026022,2]
[384880040,1757610632823,-4992.86,0.00026038,2]
[384880041,1757610632832,-5000.0,0.000261,2]
[384880042,1757610632842,-1256.03,0.00026136,2]
[384880043,1757610632851,-150.0,0.00026157,2]
[384880044,1757610632860,-165.24,0.00026157,2]
[384880045,1757610632869,-232.13,0.0002616,2]
[384880046,1757610632878,-399.34,0.00026162,7]
[384880047,1757610632887,-1711.87,0.00026366,2]
[384880048,1757610632896,-212.89373682,0.00026386,2]
[384880049,1757610632905,-515.37529716,0.00026386,2]
[384880050,1757610632914,-230.0,0.000264,2]
[384880051,1757610632923,-1000.0,0.00026438,7]
[384880052,1757610632933,-502.46,0.00026438,2]
[384880053,1757610632943,-803.26,0.00026438,2]
[384880054,1757610632952,-803.26,0.00026438,2]
[384880055,1757610632961,-590.39,0.0002663,7]
[384880056,1757610632970,-378.0,0.00026644,2]
[384880057,1757610632979,-1213.00517586,0.000268,2]
[384880058,1757610632989,-4167.0,0.00026858,2]
[384880059,1757610632998,-6170.0,0.00026858,2]
[384880060,1757610633007,-725.0,0.00026858,2]
[384880061,1757610633016,-420.0,0.00026977,2]
[384880062,1757610633025,-500.0,0.00026999,2]
[384880063,1757610633034,-221.14338468,0.00026999,2]
[384880064,1757610633044,-200.17908105,0.00026999,2]
[384880065,1757610633053,-1213.00517586,0.00027,2]
[384880066,1757610633063,-187.0,0.00027,7]
[384880067,1757610633072,-256.0,0.00027,7]
[384880068,1757610633082,-11772.83338331,0.00027,2]
[384880069,1757610633092,-7361.26465301,0.00027,2]
[384880070,1757610633101,-2937.53297064,0.00027,2]
[384880071,1757610633110,-2000.0,0.00027,2]
[384880072,1757610633119,-10000.0,0.00027,2]
[384880073,1757610633129,-343.0,0.00027,2]
[384880074,1757610633138,-8936.36,0.00027097,2]
[384880075,1757610633148,-1680.0,0.00027099,2]
[384880076,1757610633158,-1489.39,0.000271,2]
[384880077,1757610633168,-471.46,0.00027123,2]
[384880078,1757610633178,-276.9306,0.00027136,2]
[384880079,1757610633188,-709.883,0.00027205,15]
[384880080,1757610633197,-823.87428975,0.00027233,2]
[384880081,1757610633206,-150.0,0.00027236,2]
[384880082,1757610633216,-150.0,0.00027236,2]
[384880083,1757610633226,-150.0,0.00027236,2]
[384880084,1757610633236,-150.0,0.00027236,2]
[384880085,1757610633245,-150.0,0.00027236,2]
[384880086,1757610633254,-1259.0,0.00027236,2]
[384880087,1757610633263,-3386.0,0.00027236,2]
[384880088,1757610633272,-886.0,0.00027236,2]
[384880089,1757610633282,-2037.0,0.00027236,2]
[384880090,1757610633291,-601.0,0.00027236,2]
[384880091,1757610633301,-1579.0,0.00027236,2]
[384880092,1757610633311,-568.0,0.00027236,2]
[384880093,1757610633320,-1302.0,0.00027236,2]
[384880094,1757610633330,-296.82957687,0.00027236,2]
[384880095,1757610633351,-286.91,0.00027236,2]
[384880096,1757610633382,-228.26042313,0.00027236,2]
[384880097,1757610633391,-171.72490699,0.00027236,2]
[384880098,1757610633403,-1004.27509301,0.00027236,2]
[384880099,1757610633414,-897.0,0.00027236,2]
[384880100,1757610633426,-273.09,0.00027286,2]
[384880101,1757610633435,-3816.0406922,0.00027286,2]
[384880102,1757610633446,-405.7835,0.00027287,2]
[384880103,1757610633456,-5750.99142225,0.00027287,2]
[384880104,1757610633465,-1034.19223857,0.00027287,2]
[384880105,1757610633476,-306.67253808,0.00027297,2]
[384880106,1757610633486,-1213.00517586,0.000273,2]
[384880107,1757610633497,-399.41300105,0.00027314,2]
[384880108,1757610633507,-3816.0406922,0.00027348,2]
[384880109,1757610633517,-5750.99142223,0.00027349,2]
[384880110,1757610633527,-267.46074303,0.00027352,2]
[384880111,1757610633537,-500.0,0.00027373,2]
[384880112,1757610633551,-500.0,0.00027373,2]
[384880113,1757610633562,-500.0,0.00027373,2]
[384880114,1757610633572,-500.0,0.00027373,2]
[384880115,1757610633582,-500.0,0.00027373,2]
[384880116,1757610633593,-83667.7108487,0.00027387,2]
[384880117,1757610633604,-2017.75794036,0.00027387,2]
[384880118,1757610633634,-4563.98329336,0.00027387,2]
[384880119,1757610633646,-385.52495902,0.00027387,2]
[384880120,1757610633658,-942.14617011,0.00027387,2]
[384880121,1757610633670,-3337.5370601,0.00027387,2]
[384880122,1757610633692,-15693.45767408,0.00027387,2]
[384880123,1757610633703,-1638.94600043,0.00027387,2]
[384880124,1757610633716,-5425.0,0.00027387,2]
[384880126,1757610638213,-16337.23442567,0.00026858,2]
[384880179,1757610639082,-4630.76557433,0.00026858,2]
[384880181,1757610639091,-5000.0,0.000271,2]
[384880183,1757610639099,-133827.87499884,0.00027387,2]
[384880185,1757610639108,-408.92055401,0.00027387,2]
[384880187,1757610639117,-500.0,0.00027387,2]
[384880189,1757610639126,-150.0,0.00027387,2]
[384880191,1757610639134,-150.0,0.00027387,2]
[384880193,1757610639144,-150.0,0.00027387,2]
[384880195,1757610639152,-150.0,0.00027387,2]
[384880197,1757610639161,-150.0,0.00027387,2]
[384880199,1757610639170,-150.0,0.00027387,2]
[384880201,1757610639178,-150.0,0.00027387,2]
[384880202,1757610639187,-500.0,0.00027387,2]
[384880204,1757610639197,-500.0,0.00027387,2]
[384880206,1757610639206,-150.0,0.00027387,2]
[384880208,1757610639216,-500.0,0.00027387,2]
[384880211,1757610639225,-150.0,0.00027387,2]
[384880213,1757610639234,-500.0,0.00027387,2]
[384880215,1757610639243,-150.0,0.00027387,2]
[384880217,1757610639252,-150.0,0.00027387,2]
[384880219,1757610639261,-500.0,0.00027387,2]
[384880221,1757610639270,-500.0,0.00027387,2]
[384880222,1757610639279,-500.0,0.00027387,2]
[384880225,1757610639289,-150.0,0.00027387,2]
[384880227,1757610639299,-150.0,0.00027387,2]
[384880229,1757610639310,-150.0,0.00027387,2]
[384880231,1757610639318,-150.0,0.00027387,2]
[384880233,1757610639327,-500.0,0.00027387,2]
[384880235,1757610639336,-500.0,0.00027387,2]
[384880237,1757610639345,-150.0,0.00027387,2]
[384880239,1757610639354,-150.0,0.00027387,2]
[384880241,1757610639363,-2904.0,0.00027387,2]
[384880243,1757610639372,-500.0,0.00027387,2]
[384880245,1757610639381,-150.0,0.00027387,2]
[384880247,1757610639389,-152.0,0.00027395,3]
[384880249,1757610639398,-150.0,0.00027396,16]
[384880251,1757610639407,-677.0,0.00027397,2]
[384880253,1757610639416,-26080.63612327,0.00027397,5]
[384880255,1757610639427,-3329.83403584,0.00027397,5]
[384880260,1757610639472,-876.4,0.00027397,5]
[384880284,1757610640492,-348.08689987,0.00027397,5]
[384880456,1757610646247,-2500.0,0.00027287,2]
[384880459,1757610646256,-78296.98734615,0.00027397,5]
[384880460,1757610646266,-2363.50219891,0.00027397,2]
[384880461,1757610646275,-77211.35800367,0.00027397,2]
[384880462,1757610646512,-82920.38357506,0.00027397,2]
[384880463,1757610646521,-452.87517151,0.00027397,2]
[384880464,1757610646531,-1000.0,0.00027397,7]
[384880465,1757610646542,-400.0,0.00027397,7]
[384880466,1757610646555,-407.96032751,0.00027397,7]
[384880467,1757610646565,-400.0,0.00027397,7]
[384880468,1757610646574,-3116.7468458,0.00027397,2]
[384880469,1757610646584,-517.89159187,0.00027397,7]
[384880470,1757610646594,-211.46752395,0.00027397,7]
[384880471,1757610646604,-400.0,0.00027397,7]
[384880472,1757610646613,-249.0,0.00027397,7]
[384880474,1757610646622,-400.0,0.00027397,7]
[384880476,1757610646631,-400.0,0.00027397,7]
[384880478,1757610646641,-151.0,0.00027397,7]
[384880479,1757610646650,-400.0,0.00027397,7]
[384880480,1757610646659,-340.0,0.00027397,7]
[384880481,1757610646668,-549.88,0.00027397,7]
[384880482,1757610646678,-400.0,0.00027397,7]
[384880483,1757610646687,-400.0,0.00027397,7]
[384880484,1757610646696,-400.0,0.00027397,7]
[384880485,1757610646706,-610.93,0.00027397,7]
[384880486,1757610646715,-400.0,0.00027397,7]
[384880488,1757610646725,-402.86222395,0.00027397,7]
[384880489,1757610646735,-400.0,0.00027397,7]
[384880492,1757610646746,-400.0,0.00027397,7]
[384880494,1757610646755,-400.0,0.00027397,7]
[384880496,1757610646765,-400.0,0.00027397,7]
[384880497,1757610646774,-400.0,0.00027397,7]
[384880499,1757610646783,-400.0,0.00027397,7]
[384880501,1757610646793,-206.76188118,0.00027397,7]
[384880503,1757610646802,-400.0,0.00027397,7]
[384880505,1757610646812,-400.0,0.00027397,7]
[384880507,1757610646821,-400.0,0.00027397,7]
[384880509,1757610646830,-279.526284,0.00027397,7]
[384880512,1757610646840,-279.526284,0.00027397,7]
[384880514,1757610646849,-279.526284,0.00027397,7]
[384880516,1757610646859,-2156.92,0.00027397,7]
[384880518,1757610646867,-279.526284,0.00027397,7]
[384880520,1757610646877,-400.0,0.00027397,7]
[384880522,1757610646886,-279.526284,0.00027397,7]
[384880524,1757610646895,-279.526284,0.00027397,7]
[384880526,1757610646905,-279.526284,0.00027397,7]
[384880528,1757610646914,-279.526284,0.00027397,7]
[384880530,1757610646923,-279.526284,0.00027397,7]
[384880532,1757610646932,-400.0,0.00027397,7]
[384880535,1757610646942,-279.526284,0.00027397,7]
[384880536,1757610646951,-279.526284,0.00027397,7]
[384880537,1757610646960,-279.526284,0.00027397,7]
[384880538,1757610646970,-400.0,0.00027397,7]
[384880539,1757610646981,-279.526284,0.00027397,7]
[384880540,1757610646991,-151.870704,0.00027397,7]
[384880541,1757610647000,-401.16760078,0.00027397,7]
[384880542,1757610647010,-279.526284,0.00027397,7]
[384880543,1757610647019,-279.526284,0.00027397,7]